Cogmind - Beta 14 @@@ ROGUE MODE // 2024.10.27 @ 19:43:39 Player: toydarian Result: Destroyed self with Rocket Launcher Performance ------------- Evolutions (1) 500 Regions Visited (6) 1200 Robots Destroyed (61) 305 Value Destroyed (1685) 1685 Prototype IDs (2) 40 Alien Tech Used (0) 0 Bonus (338) 338 TOTAL SCORE: 4068 Bonus ------- High Alert Combat Kills 38 Aligned with FarCom 300 Cogmind --------- Core Integrity 0/400 Matter 176/300 Energy 100/100 System Corruption 5% Temperature Cool (9) Movement Core (750) Ox14 Location -8/Mines Parts ------- > --- POWER (1) -------- (None) > --- PROPULSION (3) --- (None) > --- UTILITY (3) ------ High-capacity Storage Unit 0b10 Alert Chip > --- WEAPON (2) ------- Rocket Launcher > --- INVENTORY (20) --- Cesium-ion Thruster Cesium-ion Thruster Cesium-ion Thruster Cesium-ion Thruster Large Storage Unit Compact Matter Pod (150) Hacking Suite Peak State ------------ > --- POWER ------------ Improved Ion Engine > --- PROPULSION ------- Light Treads Improved Treads Improved Treads > --- UTILITY ---------- Large Storage Unit Structural Scanner Medium Armor Plating > --- WEAPON ----------- Improved Assault Rifle Improved Assault Rifle > --- INVENTORY -------- Improved Ion Engine Improved Ion Engine Light Treads Light Treads Cesium-ion Thruster Cesium-ion Thruster Cesium-ion Thruster Cesium-ion Thruster Compact Matter Pod Hacking Suite Heavy Assault Rifle Heavy Assault Rifle Grenade Launcher Grenade Launcher Grenade Launcher [Rating: 20] Favorites ----------- Power Improved Ion Engine Engine Improved Ion Engine Propulsion Light Treads Treads Light Treads Leg Aluminum Leg Utility Structural Scanner Device Structural Scanner Storage Large Storage Unit Processor 0b10 Alert Chip Protection Light Armor Plating Weapon Improved Assault Rifle Energy Gun EM Pulse Gun Ballistic Gun Improved Assault Rifle Launcher Grenade Launcher Build | -11 -10 -10 -9 -9 -9 -8 ------- Run | Yrd Mat Min Mat Min Exi Min Slots Evolved 2 | . . . 2 . . . Power . | . . . . . . . Propulsion 1 | . . . 1 . . . Utility 1 | . . . 1 . . . Weapon . | . . . . . . . Parts Attached 56 | 7 10 2 27 3 1 6 Power 5 | 1 1 . 2 . . 1 Engine 5 | 1 1 . 2 . . 1 Core . | . . . . . . . Reactor . | . . . . . . . Propulsion 22 | 3 5 . 11 1 . 2 Treads 18 | 2 2 . 11 1 . 2 Leg 4 | 1 3 . . . . . Wheel . | . . . . . . . Hover . | . . . . . . . Flight . | . . . . . . . Utility 14 | 1 2 2 8 . 1 . Device 2 | . . . 2 . . . Storage 5 | 1 1 1 2 . . . Processor 1 | . . . . . 1 . Hackware . | . . . . . . . Protection 6 | . 1 1 4 . . . Artifact . | . . . . . . . Weapon 15 | 2 2 . 6 2 . 3 Energy Gun 1 | 1 . . . . . . Energy Cannon . | . . . . . . . Ballistic Gun 9 | 1 2 . 5 1 . . Ballistic Cannon . | . . . . . . . Launcher 5 | . . . 1 1 . 3 Special Weapon . | . . . . . . . Impact Weapon . | . . . . . . . Slashing Weapon . | . . . . . . . Piercing Weapon . | . . . . . . . Special Melee Weapon . | . . . . . . . Unidentified Prototypes 2 | . 1 . . . 1 . Parts Lost 18 | . . . 7 3 . 8 Power 2 | . . . . . . 2 Propulsion 4 | . . . . 1 . 3 Utility 4 | . . . 3 . . 1 Weapon 8 | . . . 4 2 . 2 Highest Loss Streak 8 | . . . 3 3 . 8 To Critical Strikes . | . . . . . . . Average Slot Usage (%) 95 | . 94 100 96 83 93 91 Engine 11 | . 14 14 11 11 11 11 Treads 29 | . 9 28 33 28 33 29 Leg 2 | . 17 . . . . . Device 8 | . . . 11 11 11 9 Storage 11 | . 14 14 11 11 11 11 Protection 7 | . 8 14 7 . . . Ballistic Gun 20 | . 27 28 21 12 11 9 Launcher 1 | . . . . 10 11 9 Peak Build Rating 20 | 6 13 15 20 16 19 19 Average Rating 15 | 4 12 13 16 12 15 17 On Entrance 11 | . 6 13 13 16 13 19 Naked Turns . | . . . . . . . Heaviest Build 54 | 13 26 26 54 54 54 54 Greatest Support 66 | 20 40 40 66 66 63 63 Greatest Overweight (x) 16 | . 1 . . 1 . 16 Average Overweight (x) . | . . . . . . . Largest Inventory Capacity 20 | 8 10 10 20 20 20 20 Average Capacity 13 | 6 8 10 14 20 20 20 Most Carried 15 | 6 10 10 15 15 12 12 Average Carried 11 | 4 7 10 13 12 12 11 Final Capacity 20 | 8 10 10 20 20 20 20 Final Carried 15 | 6 10 10 15 12 12 7 Class Distribution -------------------- 86% | Mutant 9% | Scavenger-Mutant 3% | Skirmisher Dominant Class ---------------- Mutant | -10/Materials Mutant | -10/Mines Mutant | -9/Materials Mutant | -9/Mines Mutant | -9/Exiles Skirmisher | -8/Mines Resources | -11 -10 -10 -9 -9 -9 -8 ----------- Run | Yrd Mat Min Mat Min Exi Min Matter Collected 1823 | 196 287 305 939 72 . 24 Remotely . | . . . . . . . Salvage Created 1926 | . 287 . 1452 119 . 68 Parts 143 | . 19 . 108 10 . 6 Haulers Intercepted 1 | . 1 . . . . . Recyclers Shooed . | . . . . . . . Parts Field Recycled . | . . . . . . . Retrieved Matter . | . . . . . . . Parts Self-Destructed . | . . . . . . . Prevented . | . . . . . . . Kills | -11 -10 -10 -9 -9 -9 -8 ------- Run | Yrd Mat Min Mat Min Exi Min Combat Hostiles Destroyed 54 | . 7 . 38 7 . 2 Guns 44 | . 7 . 36 1 . . AOE 10 | . . . 2 6 . 2 Classes Destroyed 10 | . 3 . 6 . . 1 Worker 2 | . . . 2 . . . Builder 1 | . . . . . . 1 Hauler 1 | . 1 . . . . . Operator 2 | . . . 2 . . . Watcher 1 | . . . 1 . . . Swarmer 17 | . 2 . 11 4 . . Grunt 24 | . 5 . 15 3 . 1 Brawler 1 | . . . 1 . . . Duelist 2 | . . . 1 . . 1 Sentry 10 | . . . 10 . . . Best Kill Streak 8 | . 2 . 8 7 . 3 Combat Bots Only 8 | . 2 . 8 7 . 2 Max Kills in Single Turn 4 | . 1 . 2 4 . 1 Gunslinging . | . . . . . . . Exploded 4 | . . . 2 4 . 1 Melee . | . . . . . . . Uniques/NPCs Destroyed . | . . . . . . . Combat | -11 -10 -10 -9 -9 -9 -8 -------- Run | Yrd Mat Min Mat Min Exi Min Hostile Shots Fired 312 | . 33 . 211 26 . 42 Missed 69 | . 9 . 49 4 . 7 Damage Taken 3329 | . 271 . 1998 299 . 761 Core 436 | . 33 . 277 27 . 99 Absorbed by Shields . | . . . . . . . Core Remaining (%) 93 | 100 . 86 . . . . Volleys Fired 149 | . 23 . 116 4 . 6 Largest 2 | . 2 . 2 2 . 2 Hottest 53 | . 46 . 53 53 . 53 Shots Fired 283 | . 47 . 220 8 . 8 Gun 271 | . 47 . 218 4 . 2 Cannon . | . . . . . . . Launcher 12 | . . . 2 4 . 6 Special . | . . . . . . . Kinetic 271 | . 47 . 218 4 . 2 Thermal . | . . . . . . . Explosive 12 | . . . 2 4 . 6 Electromagnetic . | . . . . . . . Robot Hit Streak 49 | . 7 . 49 3 . 1 Robot Miss Streak 4 | . 2 . 4 1 . 2 Penetration Max . | . . . . . . . Secondary Targets 6 | . . . 6 . . . Max Gunslinging Chain 1 | . . . 1 . . . Shots Hit Robots 203 | . 31 . 165 5 . 2 Core Hits 91 | . 12 . 62 9 . 8 Critical Kills 1 | . . . 1 . . . Critical Parts Destroyed . | . . . . . . . Critical Strikes 1 | . . . 1 . . . Destroy 1 | . . . 1 . . . Melee Attacks . | . . . . . . . Impact . | . . . . . . . Slashing . | . . . . . . . Piercing . | . . . . . . . Sneak Attacks . | . . . . . . . Combat Hostiles . | . . . . . . . Follow-up Attacks . | . . . . . . . Damage Inflicted 3743 | . 410 . 2646 323 . 364 Guns 2936 | . 410 . 2484 42 . . Cannons . | . . . . . . . Explosions 807 | . . . 162 281 . 364 Melee . | . . . . . . . Ramming . | . . . . . . . Kinetic 2936 | . 410 . 2484 42 . . Thermal . | . . . . . . . Explosive 807 | . . . 162 281 . 364 Electromagnetic . | . . . . . . . Impact . | . . . . . . . Slashing . | . . . . . . . Piercing . | . . . . . . . Highest Corruption 5 | . 2 2 5 5 5 5 Average Corruption 3 | . 2 2 3 5 5 5 Corruption Purged . | . . . . . . . Corruption Blocked . | . . . . . . . Effects 44 | . 5 4 19 5 7 4 Message Errors 7 | . 2 2 3 . . . Matter Fused 11 | . 1 1 6 . 1 2 Heat Flow Errors 9 | . . 1 5 2 1 . Energy Discharges 6 | . . . . 2 3 1 Data Loss (minor) 6 | . . . 3 1 1 1 Data Loss (major) 1 | . 1 . . . . . Misfires 1 | . 1 . . . . . Alerts 1 | . . . . . 1 . Weapon Failures 2 | . . . 2 . . . Overload Shots . | . . . . . . . Overflow Damage 24 | . . . . . . 24 Projectiles . | . . . . . . . Explosions 24 | . . . . . . 24 Melee . | . . . . . . . Knockbacks . | . . . . . . . Impact . | . . . . . . . Kinetic . | . . . . . . . Secondary . | . . . . . . . Self-Inflicted Damage 140 | . . . . 39 . 101 Shots 6 | . . . . 2 . 4 Rammed . | . . . . . . . Targets Rammed . | . . . . . . . Kicked . | . . . . . . . Crushed . | . . . . . . . Highest Temperature 258 | . 19 248 234 258 82 8 Average Temperature 52 | . 7 189 45 100 52 4 Received Heat Transfer 1218 | . 120 . 714 132 . 252 Siege Activations . | . . . . . . . Robots Corrupted . | . . . . . . . Combat Hostiles . | . . . . . . . Parts Fried . | . . . . . . . Impact Corruptions . | . . . . . . . Robots Melted . | . . . . . . . Combat Hostiles . | . . . . . . . Parts Melted . | . . . . . . . Heat Transferred . | . . . . . . . Parts Sabotaged . | . . . . . . . Parts Stolen . | . . . . . . . Parts Stripped . | . . . . . . . Power Chain Reactions . | . . . . . . . Alert | -11 -10 -10 -9 -9 -9 -8 ------- Run | Yrd Mat Min Mat Min Exi Min Peak Influence 446 | . 191 30 446 268 . 52 Initial 99 | . . 30 11 99 . . Average 171 | . 72 30 231 241 . 11 Maximum Alert Level 2 | . . . 2 1 . . Low Security (%) 51 | 100 100 100 29 18 . 100 Level 1 45 | . . . 65 81 . . Level 2 3 | . . . 4 . . . Level 3 . | . . . . . . . Level 4 . | . . . . . . . Level 5 . | . . . . . . . High Security . | . . . . . . . Max Security . | . . . . . . . Squads Dispatched 4 | . 2 . 2 . . . Investigation 1 | . 1 . . . . . Extermination . | . . . . . . . Reinforcement 3 | . 1 . 2 . . . Assault . | . . . . . . . Garrison . | . . . . . . . Intercept . | . . . . . . . Searches Triggered . | . . . . . . . Construction Impeded . | . . . . . . . Haulers Reinforced . | . . . . . . . Active Scanning Responses . | . . . . . . . Cargo Convoy Interrupts . | . . . . . . . Stealth | -11 -10 -10 -9 -9 -9 -8 --------- Run | Yrd Mat Min Mat Min Exi Min Distress Signals 4 | . 2 . 2 . . . Communications Jammed . | . . . . . . . Distress Signals . | . . . . . . . Times Spotted 82 | . 15 . 55 7 . 5 Peak Tracking Total 7 | . 4 . 7 7 . 3 Tactical Retreats 6 | . 3 . 2 . . 1 Traps | -11 -10 -10 -9 -9 -9 -8 ------- Run | Yrd Mat Min Mat Min Exi Min Traps Triggered 4 | . 1 . 3 . . . Indirectly . | . . . . . . . Trap Hack Attempts . | . . . . . . . Triggered . | . . . . . . . Disarmed . | . . . . . . . Reprogrammed . | . . . . . . . Reused . | . . . . . . . Traps Extracted . | . . . . . . . Installed . | . . . . . . . Triggered . | . . . . . . . Machines | -11 -10 -10 -9 -9 -9 -8 ---------- Run | Yrd Mat Min Mat Min Exi Min Machines Disabled 1 | . . . 1 . . . Max in Single Turn 1 | . . . 1 . . . Machines Repaired . | . . . . . . . Machines Dismantled . | . . . . . . . Machines Sabotaged . | . . . . . . . Overloaded Fab Kills . | . . . . . . . Hacking | -11 -10 -10 -9 -9 -9 -8 --------- Run | Yrd Mat Min Mat Min Exi Min Machines Accessed 10 | . 4 . 6 . . . Terminals 10 | . 4 . 6 . . . Fabricators . | . . . . . . . Repair Stations . | . . . . . . . Recycling Units . | . . . . . . . Scanalyzers . | . . . . . . . Garrison Access . | . . . . . . . Total Hacks 28 | . 10 . 18 . . . Successful 6 | . . . 6 . . . Failed 22 | . 10 . 12 . . . Catastrophic 4 | . 4 . . . . . Database Lockouts . | . . . . . . . Manual 26 | . 8 . 17 . 1 . Terminals 28 | . 10 . 18 . . . Fabricators . | . . . . . . . Repair Stations . | . . . . . . . Recycling Units . | . . . . . . . Scanalyzers . | . . . . . . . Garrison Access . | . . . . . . . Terminal Hacks 6 | . . . 6 . . . Record 1 | . . . 1 . . . Alert Level 3 | . . . 3 . . . Unreport Threat 2 | . . . 2 . . . Fabricator Hacks . | . . . . . . . Repair Station Hacks . | . . . . . . . Recycling Unit Hacks . | . . . . . . . Scanalyzer . | . . . . . . . Garrison Access Hacks . | . . . . . . . Unauthorized Hacks . | . . . . . . . Terminals . | . . . . . . . Fabricators . | . . . . . . . Repair Stations . | . . . . . . . Recycling Units . | . . . . . . . Scanalyzers . | . . . . . . . Garrison Access . | . . . . . . . Data Cores Recovered . | . . . . . . . Used . | . . . . . . . Hacking Detections 10 | . 4 . 6 . . . Full Trace Events 4 | . 2 . 2 . . . Feedback Events . | . . . . . . . Feedback Blocked . | . . . . . . . Robot Schematics Acquired . | . . . . . . . Robots Built . | . . . . . . . Authchips . | . . . . . . . Time . | . . . . . . . Total Robot Build Rating . | . . . . . . . Part Schematics Acquired . | . . . . . . . Parts Built . | . . . . . . . Authchips . | . . . . . . . Time . | . . . . . . . Total Part Build Rating . | . . . . . . . Parts Repaired . | . . . . . . . Time . | . . . . . . . Parts Recycled . | . . . . . . . Recycled Matter . | . . . . . . . Retrieved Matter . | . . . . . . . Retrieved Components . | . . . . . . . Parts Scanalyzed . | . . . . . . . Part Schematics Acquired . | . . . . . . . Parts Damaged . | . . . . . . . Bothacking | -11 -10 -10 -9 -9 -9 -8 ------------ Run | Yrd Mat Min Mat Min Exi Min Used RIF Installer . | . . . . . . . Robots Hacked . | . . . . . . . Non-combat . | . . . . . . . Combat . | . . . . . . . Robot Hacks Applied . | . . . . . . . Relay Couplers Released . | . . . . . . . Fabnet Peak Effective % . | . . . . . . . Robots Rewired . | . . . . . . . Allies Hacked . | . . . . . . . Hacks Repelled . | . . . . . . . Allies | -11 -10 -10 -9 -9 -9 -8 -------- Run | Yrd Mat Min Mat Min Exi Min Total Allies . | . . . . . . . Largest Group . | . . . . . . . Highest-Rated Group . | . . . . . . . Highest-Rated Ally . | . . . . . . . Total Orders . | . . . . . . . Ally Attacks . | . . . . . . . Total Damage . | . . . . . . . Kills . | . . . . . . . Allies Corrupted . | . . . . . . . Allies Melted . | . . . . . . . Intel | -11 -10 -10 -9 -9 -9 -8 ------- Run | Yrd Mat Min Mat Min Exi Min Robot Analysis Total . | . . . . . . . Derelict Logs Recovered 1 | . . 1 . . . . Drone Launches . | . . . . . . . Drone Recoveries . | . . . . . . . Exploration | -11 -10 -10 -9 -9 -9 -8 ------------- Run | Yrd Mat Min Mat Min Exi Min Turns Passed 3691 | 83 479 351 2174 108 333 163 Spaces Moved 1855 | 45 213 218 1037 50 208 84 Core 4 | 3 . . . . . 1 Treads 1713 | 40 77 218 1037 50 208 83 Legs 138 | 2 136 . . . . . Wheels . | . . . . . . . Hover . | . . . . . . . Flight . | . . . . . . . Fastest Speed 50 | 50 120 160 160 160 160 160 Average Speed 161 | 150 166 160 160 185 160 172 Slowest Speed 850 | 160 190 160 160 240 160 850 Overloaded Moves . | . . . . . . . Propulsion Burnouts . | . . . . . . . Robots Hopped . | . . . . . . . Cave-ins Triggered . | . . . . . . . Exploration Rate (%) 37 | 6 33 57 78 14 60 15 Regions Visited 6 Branch Regions 4 Pre-discovered Areas . | . . . . . . . Known Exits Taken . | . . . . . . . Unknown Exits Taken 6 | 1 1 1 1 1 1 . Scrap Searched 1 | . . 1 . . . . Spaces Dug . | . . . . . . . Terrain Destroyed 84 | . . . 6 30 . 48 Melee . | . . . . . . . Projectile . | . . . . . . . AOE 84 | . . . 6 30 . 48 Terrain Rammed . | . . . . . . . Walls Destroyed . | . . . . . . . Machines Disabled . | . . . . . . . Actions | -11 -10 -10 -9 -9 -9 -8 --------- Run | Yrd Mat Min Mat Min Exi Min Total 2271 | 57 298 221 1334 57 208 96 Wait 147 | . 23 . 124 . . . Move 1849 | 44 212 217 1036 49 207 84 Hop . | . . . . . . . Pick Up 31 | 5 13 1 12 . . . Fast Attach 18 | 7 3 . 5 1 1 1 Attach 12 | . . . 5 2 . 5 Detach 4 | 1 2 . 1 . . . Swap 26 | . 7 2 17 . . . Drop 35 | . 15 1 18 1 . . Fire 149 | . 23 . 116 4 . 6 Melee . | . . . . . . . Ram . | . . . . . . . Kick . | . . . . . . . Crush . | . . . . . . . Escape Stasis . | . . . . . . . Rewire . | . . . . . . . Trap . | . . . . . . . Miscellaneous . | . . . . . . . Route ------- -11/Scrapyard -10/Materials -10/Mines (discovered 2 exits: *Mat / Sub) -9/Materials (discovered 5 exits: [*Mat x2] / [*Min] / [*Sto x2]) -9/Mines -9/Exiles -8/Mines History --------- Turn | Location | Event 10 | -11/Scrapyard | Discovered new exit (range 15) 84 | -11/Scrapyard | Entered Materials 300 | -10/Materials | Build established: Mutant 393 | -10/Materials | Discovered new exit (range 11) 563 | -10/Materials | Entered Mines 802 | -10/Mines | Identified exit to Subcaves 897 | -10/Mines | Discovered new exit (range 8) 914 | -10/Mines | Entered Materials 914 | -9/Materials | Evolved 2 slots: Propulsion x1, Utility x1 1174 | -9/Materials | Destroyed 8 combat bots 1376 | -9/Materials | Discovered new exit (range 8) 1488 | -9/Materials | Discovered new exit (range 3) 1978 | -9/Materials | Discovered new exit (range 12) 2416 | -9/Materials | Discovered new exit (range 8) 2678 | -9/Materials | Core integrity fell below 50% 2783 | -9/Materials | Lost 3 parts (1u2w) 3027 | -9/Materials | Discovered new exit (range 13) 3088 | -9/Materials | Entered Mines 3134 | -9/Mines | Lost 3 parts (1n2w) 3137 | -9/Mines | Destroyed 7 combat bots 3165 | -9/Mines | Assembled infested the area 3170 | -9/Mines | Assisted by a Guerilla fighting off Assembled 3189 | -9/Mines | Deemed a non-threat by the Exiles lab entrance 3189 | -9/Mines | Discovered new exit (range 5) 3196 | -9/Mines | Entered Exiles 3235 | -9/Exiles | Met 8R-AWN 3262 | -9/Exiles | Met EX-HEX 3307 | -9/Exiles | Met EX-BIN 3329 | -9/Exiles | Aligned with FarCom system 3331 | -9/Exiles | Given EX-Vault access code 3369 | -9/Exiles | Opened EX-Vault 3377 | -9/Exiles | Found Prototype Processor 3377 | -9/Exiles | Identified 0b10 Alert Chip 3411 | -9/Exiles | Warned to stay clear of 0b10 Research branches 3456 | -9/Exiles | Met EX-DEC 3515 | -9/Exiles | Discovered new exit (range 10) 3529 | -9/Exiles | Left Exiles lab with 0b10 Alert Chip 3529 | -9/Exiles | Entered Mines 3586 | -8/Mines | Core integrity fell below 20% 3692 | -8/Mines | Destroyed self with Rocket Launcher Last Messages --------------- 03673_ Imp. Treads destroyed. 03674_ K-01 Serf collects debris. 03675_ Critical hit (Burn: +37). 03676_ Lgt. Treads severed. 03677_ K-01 Serf collects debris. 03677_ Structural Scanner destroyed. 03680_ Lgt. Treads severed. 03681_ K-01 Serf collects debris. 03681_ Destroyed Lgt. Nuclear Core. 03681_ L-31 Rogue destroyed. 03683_ Acquired 24 matter. 03684_ K-01 Serf collects debris. 03686_ Grenade Launcher destroyed. 03688_ K-01 Serf collects debris. 03689_ The unstable cave ceiling collapses. 03691_ K-01 Serf collects debris. 03692_ The unstable cave ceiling collapses. 03692_ G-47 Trooper destroyed. 03692_ Imp. Ion Engine destroyed. 03692_ Destroyed Imp. Ion Engine. Map ----- +----------------------------------------------------+ | ?????????????????????????????????????????????????? | | ????????????????????? # ???????????? ####????????? | | ????????????????????? # ???????????#####????????? | | ???????????????????? # ####???????## ????????? | | ??????????????????? ######?????## ##????????? | | ?????????????????? ####????## ##????????? | | ?????????????????? ####??? ##????????? | | ?????????????????? ###???## ##????????? | | ??????????????????? ##??### ###???????? | | ????????????????????? ##??### ###???????? | | ?????????????????????## ###?### ###???????? | | ?????????????????????### ####### ##???????? | | ???????????????????##### ##### ##???????? | | ??????????????????##### #### ##???????? | | ??????????????????### #### ##???????? | | ??????????????????## ##### ###???????? | | ???????????????? ### #### ###???????? | | ????????????????? ????##### ##????????? | | ?????????????????????????#### ##????????? | | ??????????????????????????####### #######????????? | | ????????????????????############# #######????????? | | ?????????????????################ ##?????????????? | | ?????? ???## ###### ##### ## ##?????????????? | | ????? # ### ###=! ##?????????????? | | ????? u % ###?????????????? | | ????? !@* ! ###?????????????? | | ??????????? ## #### = g ###?????????????? | | ???????????### #### % ##?????????????? | | ?????????????????## ###?????????????? | | ?????????????????### ## ####?????????????? | | ?????????????????### #### ###??????????????? | | ??????????????????## ###?########???????????????? | | ??????????????????##k ##???#######???????????????? | | ??????????????????### ##?????????????????????????? | | ??????????????????######?????????????????????????? | | ???????????????????#####?????????????????????????? | | ?????????????????????????????????????????????????? | | ?????????????????????????????????????????????????? | | ?????????????????????????????????????????????????? | | ?????????????????????????????????????????????????? | | ?????????????????????????????????????????????????? | | ?????????????????????????????????????????????????? | | ?????????????????????????????????????????????????? | | ?????????????????????????????????????????????????? | | ?????????????????????????????????????????????????? | | ?????????????????????????????????????????????????? | | | | | | | | | +----------------------------------------------------+ Best States ------------- Heat Dissipation 28 Energy Generation 12 Energy Capacity 265 Matter Stores 300 Matter Capacity 300 Sight Range 16 Robot Scan Range 14 Terrain Scan Density 10 Armor Coverage 225 Evasion (%) 50 Recoil Reduction 3 Item Schematics ----------------- None Robot Schematics ------------------ None Fabricated ------------ Nothing Alien Tech Used ----------------- None Achievements -------------- None Challenges ------------ None Game ------ Seed TeleporterPiercingLance Manual? 0 Play Time 00:32:35 Cumulative 28.5 hours Start 2024.10.27 @ 19:12:28 End 2024.10.27 @ 19:43:39 Sessions 1 Manual Loads 0 Difficulty Rogue Special Mode None Game No. 38 Rogue 31 Adventurer 0 Explorer 7 Win Type - Total 1 Types 1/0/0/0/0/0/0/0/0 Lore% 11 Gallery% 21 Achievement% 26 Wizard Run 0 Options --------- Layout 0 ASCII 0 Keyboard 0 Movement Mouse Keybinds 0 Fullscreen 1 Font 24/Terminus Map View 76x50 Zoom Use 0% Tactical HUD 1 Map Filters NONE Filters NONE Steam 1 RUN: 832569a0-dac7-4718-a9e9-c52d4d632ef9